[Event "NOR-ch Various 2019"]
[Site "Larvik"]
[Date "2019.07.07"]
[Round "2.4"]
[White "Mottang, Harald"]
[Black "Simonsen, Steinar"]
[Result "1-0"]
[ECO "D07"]
[WhiteElo "1559"]
[BlackElo "1487"]
[Annotator "NA"]
[PlyCount "81"]
[EventDate "2019.07.06"]
[EventType "swiss"]
[EventCountry "NOR"]
[SourceTitle "playchess.com"]
[Source "ChessBase"]
[SourceQuality "1"]
[TimeControl "40/5400+30:1800+30"]

1. Nf3 {[%emt 0:00:00]} d5 {[%emt 0:01:20]} 2. c4 {[%emt 0:00:00]} e6 {[%emt 0:00:15]} 3. d4 {[%emt 0:01:08]} Nf6 {[%emt 0:00:13]} 4. Nc3 {[%emt 0:01:20]} Nc6 {[%emt 0:00:51]} 5. g3 {[%emt 0:01:57]} Bb4 {[%emt 0:01:21]} 6. Bg2 {[%emt 0:00:25]} Bxc3+ {[%emt 0:00:14]} 7. bxc3 {[%emt 0:00:17]} dxc4 {[%emt 0:00:36]} 8. Ba3 {[%emt 0:01:52]} Ne7 {[%emt 0:03:44]} 9. Qa4+ {[%emt 0:02:34]} Bd7 {[%emt 0:01:47]} 10. Qxc4 {[%emt 0:02:03]} O-O {[%emt 0:01:06]} 11. O-O {[%emt 0:03:54]} Re8 {[%emt 0:00:48]} 12. Rab1 {[%emt 0:02:00]} b5 {[%emt 0:02:58]} 13. Qd3 {[%emt 0:02:48]} h6 {[%emt 0:00:53]} 14. Ne5 {[%emt 0:02:35]} Rb8 {[%emt 0:00:50]} 15. Bc5 {[%emt 0:02:33]} a6 {[%emt 0:02:39]} 16. Ba7 {[%emt 0:01:07]} c6 {[%emt 0:07:15]} 17. Bxb8 {[%emt 0:01:17]} Qxb8 {[%emt 0:00:12]} 18. a4 {[%emt 0:03:27]} Qc7 {[%emt 0:04:57]} 19. axb5 {[%emt 0:02:01]} cxb5 {[%emt 0:00:45]} 20. Rfc1 {[%emt 0:01:32]} Rb8 {[%emt 0:02:19]} 21. c4 {[%emt 0:08:23]} b4 {[%emt 0:02:24]} 22. f4 {[%emt 0:04:20]} a5 {[%emt 0:03:24]} 23. e4 {[%emt 0:02:00]} Ne8 {[%emt 0:03:51]} 24. d5 {[%emt 0:04:10]} Bc8 {[%emt 0:03:10]} 25. c5 {[%emt 0:01:25]} Ng6 {[%emt 0:01:24]} 26. Nc6 {[%emt 0:08:11]} Ra8 {[%emt 0:00:38]} 27. f5 {[%emt 0:00:48]} exf5 {[%emt 0:03:43]} 28. exf5 {[%emt 0:00:22]} Ne5 {[%emt 0:00:44]} 29. Nxe5 {[%emt 0:05:37]} Qxe5 {[%emt 0:07:04]} 30. Be4 {[%emt 0:12:02]} Nf6 {[%emt 0:02:51]} 31. Re1 {[%emt 0:00:48]} Nxe4 {[%emt 0:00:55]} 32. Qxe4 {[%emt 0:02:08]} Qxe4 {[%emt 0:00:03]} 33. Rxe4 {[%emt 0:00:21]} Bxf5 {[%emt 0:00:05]} 34. Rbe1 {[%emt 0:02:11]} Bxe4 {[%emt 0:00:07]} 35. Rxe4 {[%emt 0:00:13]} b3 {[%emt 0:00:16]} 36. d6 {[%emt 0:03:00]} b2 {[%emt 0:01:02]} 37. Re1 {[%emt 0:00:17]} a4 {[%emt 0:00:55]} 38. d7 {[%emt 0:01:45]} Kf8 {[%emt 0:11:24]} 39. c6 {[%emt 0:01:39]} Rb8 {[%emt 0:09:34]} 40. c7 {[%emt 0:02:07]} b1=Q {[%emt 0:06:40]} 41. d8=Q+ {[%emt 0:30:37]} 1-0

[Event "NOR-ch Various 2019"]
[Site "Larvik"]
[Date "2019.07.07"]
[Round "2.5"]
[White "Sorensen, Simen"]
[Black "Kittilsen, Sigurd"]
[Result "0-1"]
[ECO "E11"]
[WhiteElo "1979"]
[BlackElo "1894"]
[Annotator "NA"]
[PlyCount "85"]
[EventDate "2019.07.06"]
[EventType "swiss"]
[EventCountry "NOR"]
[SourceTitle "playchess.com"]
[Source "ChessBase"]
[SourceQuality "1"]
[TimeControl "40/5400+30:1800+30"]

1. d4 {[%emt 0:00:00]} Nf6 {[%emt 0:00:00]} 2. c4 {[%emt 0:00:00]} e6 {[%emt 0:00:00]} 3. Nf3 {[%emt 0:00:17]} Bb4+ {[%emt 0:00:10]} 4. Bd2 {[%emt 0:01:56]} Qe7 {[%emt 0:00:23]} 5. g3 {[%emt 0:00:40]} O-O {[%emt 0:02:51]} 6. Bg2 {[%emt 0:04:43]} Bxd2+ {[%emt 0:02:36]} 7. Nbxd2 {[%emt 0:01:08]} d6 {[%emt 0:01:12]} 8. O-O {[%emt 0:01:15]} Nc6 {[%emt 0:02:11]} 9. e4 {[%emt 0:04:51]} e5 {[%emt 0:00:27]} 10. d5 {[%emt 0:02:06]} Nb8 {[%emt 0:00:50]} 11. h3 {[%emt 0:01:52]} a5 {[%emt 0:08:31]} 12. Qc2 {[%emt 0:02:57]} Na6 {[%emt 0:03:05]} 13. a3 {[%emt 0:06:34]} Bd7 {[%emt 0:00:53]} 14. b3 {[%emt 0:01:45]} g6 {[%emt 0:24:47]} 15. Ne1 {[%emt 0:05:51]} Nh5 {[%emt 0:02:46]} 16. Nd3 {[%emt 0:03:04]} f5 {[%emt 0:04:27]} 17. b4 {[%emt 0:05:58]} fxe4 {[%emt 0:11:40]} 18. Nxe4 {[%emt 0:01:11]} Nf6 {[%emt 0:00:39]} 19. Nxf6+ {[%emt 0:02:38]} Qxf6 {[%emt 0:01:51]} 20. Qb3 {[%emt 0:09:25]} Bf5 {[%emt 0:07:33]} 21. Nb2 {[%emt 0:02:27]} b6 {[%emt 0:03:57]} 22. Nd1 {[%emt 0:02:38]} axb4 {[%emt 0:01:58]} 23. Ne3 {[%emt 0:08:16]} bxa3 {[%emt 0:02:44]} 24. Nxf5 {[%emt 0:05:41]} Qxf5 {[%emt 0:02:25]} 25. Rxa3 {[%emt 0:00:28]} Nc5 {[%emt 0:00:33]} 26. Qa2 {[%emt 0:00:24]} Rxa3 {[%emt 0:01:41]} 27. Qxa3 {[%emt 0:00:05]} Qc2 {[%emt 0:01:37]} 28. h4 {[%emt 0:07:02]} Qxc4 {[%emt 0:01:24]} 29. Qe3 {[%emt 0:01:14]} e4 {[%emt 0:02:00]} 30. Qg5 {[%emt 0:01:20]} Qd4 {[%emt 0:01:07]} 31. Qe7 {[%emt 0:03:23]} Rf7 {[%emt 0:01:06]} 32. Qe8+ {[%emt 0:00:22]} Kg7 {[%emt 0:00:48]} 33. h5 {[%emt 0:00:05]} Qxd5 {[%emt 0:00:33]} 34. h6+ {[%emt 0:05:32]} Kxh6 {[%emt 0:01:00]} 35. Bh3 {[%emt 0:00:11]} Kg7 {[%emt 0:01:02]} 36. Ra1 {[%emt 0:03:35]} Rf8 {[%emt 0:00:54]} 37. Qe7+ {[%emt 0:02:20]} Qf7 {[%emt 0:00:16]} 38. Qh4 {[%emt 0:00:10]} Qxf2+ {[%emt 0:00:26]} 39. Kh1 {[%emt 0:00:03]} Qf6 {[%emt 0:02:47]} 40. Ra7 {[%emt 0:01:12]} Qxh4 {[%emt 0:00:09]} 41. Rxc7+ {[%emt 0:30:20]} Rf7 {[%emt 0:30:07]} 42. Rxf7+ {[%emt 0:00:04]} Kxf7 {[%emt 0:00:05]} 43. gxh4 {[%emt 0:00:07]} 0-1

[Event "NOR-ch Various 2019"]
[Site "Larvik"]
[Date "2019.07.07"]
[Round "2.6"]
[White "Lurdalen, Svein Erik"]
[Black "Engeset, Audun"]
[Result "1/2-1/2"]
[ECO "B25"]
[WhiteElo "1879"]
[BlackElo "1944"]
[Annotator "NA"]
[PlyCount "43"]
[EventDate "2019.07.06"]
[EventType "swiss"]
[EventCountry "NOR"]
[SourceTitle "playchess.com"]
[Source "ChessBase"]
[SourceQuality "1"]
[TimeControl "40/5400+30:1800+30"]

1. e4 {[%emt 0:00:00]} c5 {[%emt 0:00:00]} 2. Nc3 {[%emt 0:00:00]} Nc6 {[%emt 0:00:00]} 3. g3 {[%emt 0:00:00]} g6 {[%emt 0:00:38]} 4. Bg2 {[%emt 0:00:00]} Bg7 {[%emt 0:00:28]} 5. d3 {[%emt 0:00:00]} d6 {[%emt 0:00:24]} 6. f4 {[%emt 0:00:00]} e5 {[%emt 0:01:41]} 7. Nf3 {[%emt 0:08:21]} Nge7 {[%emt 0:02:23]} 8. O-O {[%emt 0:01:20]} O-O {[%emt 0:01:49]} 9. Be3 {[%emt 0:08:22]} Nd4 {[%emt 0:04:50]} 10. fxe5 {[%emt 0:06:43]} dxe5 {[%emt 0:04:03]} 11. Qd2 {[%emt 0:00:02]} Rb8 {[%emt 0:08:04]} 12. Bg5 {[%emt 0:02:00]} Be6 {[%emt 0:03:22]} 13. Rf2 {[%emt 0:05:06]} Qd7 {[%emt 0:03:31]} 14. Bxe7 {[%emt 0:05:20]} Qxe7 {[%emt 0:00:15]} 15. Nd5 {[%emt 0:00:07]} Bxd5 {[%emt 0:01:49]} 16. exd5 {[%emt 0:00:22]} h6 {[%emt 0:06:24]} 17. c4 {[%emt 0:00:45]} Nxf3+ {[%emt 0:07:59]} 18. Rxf3 {[%emt 0:06:56]} e4 {[%emt 0:05:40]} 19. dxe4 {[%emt 0:00:13]} Qxe4 {[%emt 0:00:37]} 20. Rf4 {[%emt 0:04:53]} Qe5 {[%emt 0:01:15]} 21. Rb1 {[%emt 0:10:09]} b5 {[%emt 0:02:18]} 22. b3 {[%emt 0:03:58]} 1/2-1/2

[Event "NOR-ch Various 2019"]
[Site "Larvik"]
[Date "2019.07.07"]
[Round "2.7"]
[White "Pettersen, Joran Sten"]
[Black "Grindbakken, Erik"]
[Result "1-0"]
[ECO "D35"]
[WhiteElo "1785"]
[BlackElo "1648"]
[Annotator "NA"]
[PlyCount "162"]
[EventDate "2019.07.06"]
[EventType "swiss"]
[EventCountry "NOR"]
[SourceTitle "playchess.com"]
[Source "ChessBase"]
[SourceQuality "1"]
[TimeControl "40/5400+30:1800+30"]

1. d4 {[%emt 0:00:00]} e6 {[%emt 0:01:15]} 2. Nf3 {[%emt 0:01:41]} d5 {[%emt 0:00:22]} 3. c4 {[%emt 0:02:54]} c6 {[%emt 0:00:18]} 4. cxd5 {[%emt 0:01:17]} exd5 {[%emt 0:00:13]} 5. Nc3 {[%emt 0:00:09]} Nf6 {[%emt 0:04:34]} 6. Bg5 {[%emt 0:00:49]} Nbd7 {[%emt 0:02:02]} 7. e3 {[%emt 0:00:18]} Qb6 {[%emt 0:06:42]} 8. Qc2 {[%emt 0:03:29]} Bb4 {[%emt 0:02:44]} 9. Bd3 {[%emt 0:04:27]} O-O {[%emt 0:01:47]} 10. O-O {[%emt 0:00:18]} Re8 {[%emt 0:01:05]} 11. Nd2 {[%emt 0:08:16]} h6 {[%emt 0:00:53]} 12. Bh4 {[%emt 0:00:45]} g5 {[%emt 0:04:07]} 13. Bg3 {[%emt 0:00:09]} Nh5 {[%emt 0:03:05]} 14. Rae1 {[%emt 0:09:10]} Qd8 {[%emt 0:00:25]} 15. a3 {[%emt 0:06:48]} Bf8 {[%emt 0:00:32]} 16. Bh7+ {[%emt 0:04:36]} Kh8 {[%emt 0:02:51]} 17. Bf5 {[%emt 0:00:30]} Ndf6 {[%emt 0:01:00]} 18. Be5 {[%emt 0:05:41]} Ng7 {[%emt 0:04:09]} 19. Bd3 {[%emt 0:03:22]} Ng4 {[%emt 0:00:36]} 20. Nf3 {[%emt 0:05:39]} Nxe5 {[%emt 0:03:27]} 21. Nxe5 {[%emt 0:00:15]} Be6 {[%emt 0:00:38]} 22. f4 {[%emt 0:02:02]} Bd6 {[%emt 0:06:31]} 23. f5 {[%emt 0:07:26]} Bxe5 {[%emt 0:00:12]} 24. dxe5 {[%emt 0:00:10]} Bxf5 {[%emt 0:05:06]} 25. Bxf5 {[%emt 0:01:15]} Rxe5 {[%emt 0:00:09]} 26. Bd3 {[%emt 0:04:28]} Qe7 {[%emt 0:03:25]} 27. Qf2 {[%emt 0:00:37]} Kg8 {[%emt 0:01:27]} 28. Qf6 {[%emt 0:02:53]} Re6 {[%emt 0:01:39]} 29. Qxe7 {[%emt 0:01:10]} Rxe7 {[%emt 0:00:07]} 30. Rf6 {[%emt 0:00:05]} Re6 {[%emt 0:01:38]} 31. Rxe6 {[%emt 0:01:41]} Nxe6 {[%emt 0:00:08]} 32. Rc1 {[%emt 0:03:53]} Re8 {[%emt 0:00:47]} 33. Bf5 {[%emt 0:03:32]} Kg7 {[%emt 0:02:10]} 34. Bxe6 {[%emt 0:03:52]} Rxe6 {[%emt 0:00:10]} 35. Kf2 {[%emt 0:00:09]} f5 {[%emt 0:00:30]} 36. Ne2 {[%emt 0:01:20]} Re4 {[%emt 0:02:55]} 37. Ng3 {[%emt 0:03:03]} Re5 {[%emt 0:00:30]} 38. b4 {[%emt 0:00:43]} Kf6 {[%emt 0:01:24]} 39. Kf3 {[%emt 0:01:35]} a6 {[%emt 0:01:20]} 40. Ne2 {[%emt 0:01:40]} g4+ {[%emt 0:03:16]} 41. Kf2 {[%emt 0:30:14]} Re6 {[%emt 0:31:13]} 42. Rd1 {[%emt 0:02:58]} Ke5 {[%emt 0:01:41]} 43. Rd4 {[%emt 0:00:00]} Kf6 {[%emt 0:00:00]} 44. Rf4 {[%emt 0:00:00]} Kg5 {[%emt 0:00:00]} 45. Nd4 {[%emt 0:00:00]} Rf6 {[%emt 0:00:00]} 46. a4 {[%emt 0:00:00]} h5 {[%emt 0:00:00]} 47. g3 {[%emt 0:00:00]} Kg6 {[%emt 0:00:00]} 48. Ke2 {[%emt 0:00:00]} Kg5 {[%emt 0:00:00]} 49. Kd3 {[%emt 0:00:00]} Kg6 {[%emt 0:00:00]} 50. Rf2 {[%emt 0:00:00]} Kg5 {[%emt 0:00:00]} 51. a5 {[%emt 0:00:00]} Rf7 {[%emt 0:00:00]} 52. Nb3 {[%emt 0:00:00]} h4 {[%emt 0:00:00]} 53. gxh4+ {[%emt 0:00:00]} Kxh4 {[%emt 0:00:00]} 54. Kd4 {[%emt 0:00:00]} Re7 {[%emt 0:00:00]} 55. Nc5 {[%emt 0:00:00]} Kh3 {[%emt 0:00:00]} 56. Kd3 {[%emt 0:00:00]} Rf7 {[%emt 0:00:00]} 57. Ne6 {[%emt 0:00:00]} Rf6 {[%emt 0:00:00]} 58. Nf4+ {[%emt 0:00:00]} Kh4 {[%emt 0:00:00]} 59. Rg2 {[%emt 0:00:00]} Rf7 {[%emt 0:00:00]} 60. Kd4 {[%emt 0:00:00]} Kg5 {[%emt 0:00:00]} 61. Kc5 {[%emt 0:00:00]} Re7 {[%emt 0:00:00]} 62. Rg3 {[%emt 0:00:42]} Re4 {[%emt 0:00:00]} 63. Nd3 {[%emt 0:01:07]} Rc4+ {[%emt 0:00:00]} 64. Kb6 {[%emt 0:00:41]} Rc3 {[%emt 0:00:00]} 65. Ne5 {[%emt 0:07:44]} Kf6 {[%emt 0:03:33]} 66. Nxg4+ {[%emt 0:03:38]} fxg4 {[%emt 0:00:19]} 67. Rxg4 {[%emt 0:00:05]} Rc4 {[%emt 0:00:58]} 68. h3 {[%emt 0:01:07]} Kf5 {[%emt 0:00:35]} 69. Kxb7 {[%emt 0:00:29]} Rc3 {[%emt 0:02:03]} 70. Kxa6 {[%emt 0:01:11]} Rxe3 {[%emt 0:00:17]} 71. Kb7 {[%emt 0:01:09]} Rxh3 {[%emt 0:00:26]} 72. Rg8 {[%emt 0:01:06]} Rb3 {[%emt 0:03:53]} 73. Kxc6 {[%emt 0:00:40]} Rxb4 {[%emt 0:00:13]} 74. a6 {[%emt 0:00:19]} d4 {[%emt 0:00:25]} 75. a7 {[%emt 0:00:36]} Ra4 {[%emt 0:00:06]} 76. a8=Q Rxa8 {[%emt 0:00:20]} 77. Rxa8 {[%emt 0:00:15]} Ke4 {[%emt 0:00:25]} 78. Kc5 {[%emt 0:00:37]} d3 {[%emt 0:00:16]} 79. Kc4 {[%emt 0:00:08]} Ke3 {[%emt 0:00:12]} 80. Kc3 {[%emt 0:00:29]} d2 {[%emt 0:00:06]} 81. Rd8 {[%emt 0:00:10]} d1=N+ {[%emt 0:00:07]} 1-0

[Event "NOR-ch Various 2019"]
[Site "Larvik"]
[Date "2019.07.07"]
[Round "2.8"]
[White "Jacobsen, Trond"]
[Black "Dale, Svein"]
[Result "1-0"]
[ECO "A33"]
[WhiteElo "1651"]
[BlackElo "1755"]
[Annotator "NA"]
[PlyCount "79"]
[EventDate "2019.07.06"]
[EventType "swiss"]
[EventCountry "NOR"]
[SourceTitle "playchess.com"]
[Source "ChessBase"]
[SourceQuality "1"]
[TimeControl "40/5400+30:1800+30"]

1. d4 {[%emt 0:00:00]} Nf6 {[%emt 0:00:00]} 2. c4 {[%emt 0:00:00]} c5 {[%emt 0:00:00]} 3. Nf3 {[%emt 0:00:01]} e6 {[%emt 0:03:13]} 4. Nc3 {[%emt 0:02:23]} cxd4 {[%emt 0:05:49]} 5. Nxd4 {[%emt 0:00:26]} a6 {[%emt 0:02:31]} 6. a3 {[%emt 0:05:56]} Nc6 {[%emt 0:02:22]} 7. Nf3 {[%emt 0:03:42]} Be7 {[%emt 0:08:47]} 8. Bg5 {[%emt 0:02:49]} b5 {[%emt 0:06:15]} 9. cxb5 {[%emt 0:02:59]} axb5 {[%emt 0:00:13]} 10. e3 {[%emt 0:09:49]} b4 {[%emt 0:03:57]} 11. axb4 {[%emt 0:02:38]} Rxa1 {[%emt 0:01:10]} 12. Qxa1 {[%emt 0:00:01]} Nxb4 {[%emt 0:02:18]} 13. Qa4 {[%emt 0:05:42]} O-O {[%emt 0:02:52]} 14. Bxf6 {[%emt 0:02:24]} gxf6 {[%emt 0:04:19]} 15. Be2 {[%emt 0:00:59]} Bb7 {[%emt 0:01:39]} 16. O-O {[%emt 0:01:28]} Bc6 {[%emt 0:03:16]} 17. Qa7 {[%emt 0:03:42]} Qb8 {[%emt 0:01:36]} 18. Qxb8 {[%emt 0:09:08]} Rxb8 {[%emt 0:00:03]} 19. Nd2 {[%emt 0:03:27]} d5 {[%emt 0:04:38]} 20. Rc1 {[%emt 0:03:41]} e5 {[%emt 0:08:13]} 21. b3 {[%emt 0:05:45]} f5 {[%emt 0:06:24]} 22. Nf3 {[%emt 0:05:18]} f6 {[%emt 0:06:03]} 23. h3 {[%emt 0:02:55]} Kf7 {[%emt 0:03:27]} 24. Kf1 {[%emt 0:05:22]} Ra8 {[%emt 0:05:33]} 25. h4 {[%emt 0:04:57]} Ra3 {[%emt 0:07:44]} 26. Nd2 {[%emt 0:00:56]} Bd7 {[%emt 0:01:15]} 27. g3 {[%emt 0:05:30]} Be6 {[%emt 0:01:37]} 28. Nb5 {[%emt 0:04:39]} Ra2 {[%emt 0:02:46]} 29. Ke1 {[%emt 0:00:59]} Bd7 {[%emt 0:02:19]} 30. Kd1 {[%emt 0:01:02]} Ra5 {[%emt 0:00:41]} 31. Nc3 {[%emt 0:01:39]} Na2 {[%emt 0:00:31]} 32. Nxa2 {[%emt 0:00:51]} Rxa2 {[%emt 0:00:02]} 33. Rc2 {[%emt 0:00:57]} Ra7 {[%emt 0:01:28]} 34. Bd3 {[%emt 0:02:01]} Ke6 {[%emt 0:01:22]} 35. Rb2 {[%emt 0:01:20]} Bb4 {[%emt 0:00:48]} 36. Be2 {[%emt 0:01:43]} Bc6 {[%emt 0:00:54]} 37. Bd3 {[%emt 0:00:18]} e4 {[%emt 0:00:46]} 38. Bc2 {[%emt 0:00:24]} Bb5 {[%emt 0:00:41]} 39. Rb1 {[%emt 0:00:52]} Ra2 {[%emt 0:01:03]} 40. Kc1 {[%emt 0:00:41]} 1-0

[Event "NOR-ch Various 2019"]
[Site "Larvik"]
[Date "2019.07.07"]
[Round "2.9"]
[White "Gillebo, Torgeir"]
[Black "Dybvik, Bjorn Noralf"]
[Result "1/2-1/2"]
[ECO "D51"]
[WhiteElo "1501"]
[BlackElo "1577"]
[Annotator "NA"]
[PlyCount "29"]
[EventDate "2019.07.06"]
[EventType "swiss"]
[EventCountry "NOR"]
[SourceTitle "playchess.com"]
[Source "ChessBase"]
[SourceQuality "1"]
[TimeControl "40/5400+30:1800+30"]

1. d4 {[%emt 0:00:00]} Nf6 {[%emt 0:00:31]} 2. c4 {[%emt 0:00:00]} e6 {[%emt 0:00:26]} 3. Nc3 {[%emt 0:03:57]} d5 {[%emt 0:00:48]} 4. Bg5 {[%emt 0:00:19]} c6 {[%emt 0:03:12]} 5. e3 {[%emt 0:00:28]} Bb4 {[%emt 0:01:38]} 6. Qb3 {[%emt 0:01:18]} Bxc3+ {[%emt 0:01:34]} 7. bxc3 {[%emt 0:00:28]} Nbd7 {[%emt 0:01:45]} 8. Nf3 {[%emt 0:00:38]} O-O {[%emt 0:01:32]} 9. cxd5 {[%emt 0:02:54]} exd5 {[%emt 0:02:10]} 10. Bd3 {[%emt 0:01:09]} Qa5 {[%emt 0:05:21]} 11. O-O {[%emt 0:05:44]} Re8 {[%emt 0:03:16]} 12. c4 {[%emt 0:03:36]} Ne4 {[%emt 0:07:15]} 13. cxd5 {[%emt 0:08:04]} cxd5 {[%emt 0:05:29]} 14. Bf4 {[%emt 0:02:18]} Ndf6 {[%emt 0:02:43]} 15. h3 {[%emt 0:07:36]} 1/2-1/2

[Event "NOR-ch Various 2019"]
[Site "Larvik"]
[Date "2019.07.07"]
[Round "2.10"]
[White "Selvik, Kjetil"]
[Black "Bo, Torgeir H"]
[Result "1-0"]
[ECO "A82"]
[WhiteElo "1493"]
[BlackElo "1567"]
[Annotator "NA"]
[PlyCount "47"]
[EventDate "2019.07.06"]
[EventType "swiss"]
[EventCountry "NOR"]
[SourceTitle "playchess.com"]
[Source "ChessBase"]
[SourceQuality "1"]
[TimeControl "40/5400+30:1800+30"]

1. d4 {[%emt 0:00:00]} f5 {[%emt 0:01:22]} 2. e4 {[%emt 0:04:58]} fxe4 {[%emt 0:02:18]} 3. Nc3 {[%emt 0:00:08]} Nf6 {[%emt 0:04:32]} 4. f3 {[%emt 0:03:25]} exf3 {[%emt 0:02:13]} 5. Nxf3 {[%emt 0:00:23]} e6 {[%emt 0:02:07]} 6. Bd3 {[%emt 0:05:07]} Bb4 {[%emt 0:04:48]} 7. O-O {[%emt 0:01:09]} Nc6 {[%emt 0:10:59]} 8. Bg5 {[%emt 0:02:44]} Bxc3 {[%emt 0:03:42]} 9. bxc3 {[%emt 0:00:13]} O-O {[%emt 0:06:45]} 10. Ne5 {[%emt 0:07:44]} d6 {[%emt 0:06:10]} 11. Ng4 {[%emt 0:00:15]} Bd7 {[%emt 0:01:58]} 12. Nxf6+ {[%emt 0:04:08]} gxf6 {[%emt 0:02:26]} 13. Qh5 {[%emt 0:00:22]} Qe7 {[%emt 0:06:53]} 14. Rxf6 {[%emt 0:08:12]} Rxf6 {[%emt 0:04:36]} 15. Bxf6 {[%emt 0:00:09]} Qf7 {[%emt 0:01:04]} 16. Qg5+ {[%emt 0:10:37]} Kf8 {[%emt 0:00:38]} 17. Rf1 {[%emt 0:00:25]} Ke8 {[%emt 0:03:58]} 18. Bg7 {[%emt 0:00:58]} e5 {[%emt 0:08:53]} 19. Rxf7 {[%emt 0:02:16]} Kxf7 {[%emt 0:00:23]} 20. Qf6+ {[%emt 0:00:28]} Kg8 {[%emt 0:00:56]} 21. Qh6 {[%emt 0:00:58]} exd4 {[%emt 0:01:11]} 22. Bxh7+ {[%emt 0:00:22]} Kf7 {[%emt 0:00:07]} 23. Qf6+ {[%emt 0:00:35]} Ke8 {[%emt 0:00:18]} 24. Bg6# {[%emt 0:00:10]} 1-0

[Event "NOR-ch Various 2019"]
[Site "Larvik"]
[Date "2019.07.07"]
[Round "2.11"]
[White "Edoy, Rune"]
[Black "Skretteberg, Martin"]
[Result "0-1"]
[ECO "C50"]
[WhiteElo "1319"]
[BlackElo "1397"]
[Annotator "NA"]
[PlyCount "122"]
[EventDate "2019.07.06"]
[EventType "swiss"]
[EventCountry "NOR"]
[SourceTitle "playchess.com"]
[Source "ChessBase"]
[SourceQuality "1"]
[TimeControl "40/5400+30:1800+30"]

1. e4 {[%emt 0:00:00]} e5 {[%emt 0:00:37]} 2. Nf3 {[%emt 0:00:06]} Nc6 {[%emt 0:01:57]} 3. Bc4 {[%emt 0:00:05]} d6 {[%emt 0:00:43]} 4. d3 {[%emt 0:00:49]} Na5 {[%emt 0:00:51]} 5. Nbd2 {[%emt 0:06:21]} Bg4 {[%emt 0:01:14]} 6. c3 {[%emt 0:01:24]} c6 {[%emt 0:03:17]} 7. b4 {[%emt 0:01:27]} Nxc4 {[%emt 0:00:50]} 8. Nxc4 {[%emt 0:00:24]} Be7 {[%emt 0:03:25]} 9. O-O {[%emt 0:00:40]} Nf6 {[%emt 0:00:39]} 10. h3 {[%emt 0:00:25]} Bh5 {[%emt 0:01:55]} 11. Ne3 {[%emt 0:02:46]} O-O {[%emt 0:08:40]} 12. Nf5 {[%emt 0:00:59]} Nd7 {[%emt 0:06:05]} 13. g4 {[%emt 0:01:56]} Bg6 {[%emt 0:00:12]} 14. Nh2 {[%emt 0:01:04]} Bxf5 {[%emt 0:01:30]} 15. exf5 {[%emt 0:00:23]} d5 {[%emt 0:02:14]} 16. a4 {[%emt 0:01:35]} Re8 {[%emt 0:02:02]} 17. Nf3 {[%emt 0:00:18]} h6 {[%emt 0:03:08]} 18. Re1 {[%emt 0:00:34]} Bf6 {[%emt 0:06:28]} 19. Nh2 {[%emt 0:03:51]} Qc7 {[%emt 0:05:53]} 20. Bd2 {[%emt 0:03:01]} Re7 {[%emt 0:01:51]} 21. Qc1 {[%emt 0:00:36]} Rae8 {[%emt 0:06:52]} 22. Bxh6 {[%emt 0:01:31]} gxh6 {[%emt 0:05:22]} 23. Qxh6 {[%emt 0:00:07]} Bg7 {[%emt 0:02:25]} 24. Qh4 {[%emt 0:01:42]} e4 {[%emt 0:10:11]} 25. d4 {[%emt 0:00:58]} Qf4 {[%emt 0:00:45]} 26. Re3 {[%emt 0:02:40]} Nb6 {[%emt 0:02:58]} 27. Rae1 {[%emt 0:05:19]} Nc4 {[%emt 0:01:18]} 28. R3e2 {[%emt 0:12:05]} e3 {[%emt 0:01:33]} 29. Rf1 {[%emt 0:01:24]} Nd2 {[%emt 0:01:30]} 30. fxe3 {[%emt 0:02:48]} Qh6 {[%emt 0:02:34]} 31. Qxh6 {[%emt 0:07:02]} Bxh6 {[%emt 0:00:18]} 32. Rxd2 {[%emt 0:03:09]} Bxe3+ {[%emt 0:00:18]} 33. Rdf2 {[%emt 0:00:30]} Bxf2+ {[%emt 0:01:00]} 34. Rxf2 {[%emt 0:03:20]} Re1+ {[%emt 0:01:07]} 35. Kg2 {[%emt 0:00:29]} R8e2 {[%emt 0:02:14]} 36. Nf3 {[%emt 0:02:21]} Rxf2+ {[%emt 0:00:58]} 37. Kxf2 {[%emt 0:00:08]} Rc1 {[%emt 0:00:27]} 38. h4 {[%emt 0:00:56]} Rxc3 {[%emt 0:00:18]} 39. g5 {[%emt 0:00:20]} Rc4 {[%emt 0:01:57]} 40. h5 {[%emt 0:00:14]} Rxb4 {[%emt 0:02:50]} 41. f6 {[%emt 0:32:16]} Rb1 {[%emt 0:32:26]} 42. g6 {[%emt 0:01:08]} Rh1 {[%emt 0:01:41]} 43. Ng5 {[%emt 0:03:45]} Rxh5 {[%emt 0:04:46]} 44. gxf7+ {[%emt 0:03:48]} Kf8 {[%emt 0:00:20]} 45. Ne6+ {[%emt 0:01:27]} Kxf7 {[%emt 0:00:25]} 46. Nd8+ {[%emt 0:00:07]} Kxf6 {[%emt 0:00:33]} 47. Nxb7 {[%emt 0:00:11]} Rh3 {[%emt 0:00:54]} 48. Ke2 {[%emt 0:00:37]} Kf5 {[%emt 0:00:26]} 49. Na5 {[%emt 0:00:30]} Ke4 {[%emt 0:00:59]} 50. Nxc6 {[%emt 0:00:16]} Rh2+ {[%emt 0:00:24]} 51. Kd1 {[%emt 0:00:17]} Kd3 {[%emt 0:00:51]} 52. Nb4+ {[%emt 0:00:06]} Kxd4 {[%emt 0:00:48]} 53. Nc2+ {[%emt 0:00:07]} Kc5 {[%emt 0:00:25]} 54. Kc1 {[%emt 0:01:24]} Kc4 {[%emt 0:00:00]} 55. Ne3+ {[%emt 0:00:00]} Kd4 {[%emt 0:00:00]} 56. Nc2+ {[%emt 0:00:00]} Kc3 {[%emt 0:00:00]} 57. Kd1 {[%emt 0:00:00]} Rh1+ {[%emt 0:00:00]} 58. Ne1 {[%emt 0:00:00]} Kb3 {[%emt 0:00:00]} 59. Kd2 {[%emt 0:00:00]} Rxe1 {[%emt 0:00:00]} 60. Kxe1 {[%emt 0:00:00]} Kxa4 {[%emt 0:00:00]} 61. Kd2 {[%emt 0:00:00]} Kb4 {[%emt 0:00:00]} 0-1